bitfinex/quotes_ETHUSD_20240701
["timestamp","ask_amount","ask_price","bid_price","bid_amount"]
[1719833021607,0.6284349,3468.1,3467.8,0.144]
[1719833021818,0.02077972,3468.0,3467.8,0.144]
[1719833022132,0.06404464,3468.0,3467.8,0.144]
[1719833023435,0.04326492,3468.0,3467.8,0.144]
[1719833023918,0.04326492,3468.0,3467.8,3.02765]
[1719833024231,0.04331473,3467.9,3467.8,3.02765]
[1719833024738,2.4186,3468.2,3467.8,3.02765]
[1719833024938,0.04329614,3467.9,3467.8,3.02765]
[1719833025138,2.4186,3468.2,3467.8,3.02765]
[1719833025457,0.24393797,3468.1,3467.8,3.02765]
[1719833025637,0.28736998,3468.1,3467.8,0.144]
[1719833027514,0.28736998,3468.1,3467.8,3.02767]
[1719833027710,0.04343201,3468.1,3467.8,3.02767]
[1719833028216,0.04343201,3468.1,3467.9,2.88357]
[1719833032970,0.04343201,3468.1,3468.0,2.8835]
[1719833037152,0.06421173,3468.1,3467.8,0.144]
[1719833037776,0.918,3468.0,3467.8,0.144]
[1719833037941,0.94919689,3467.9,3467.8,0.144]
[1719833038148,0.9925226,3467.9,3467.8,0.144]
[1719833038589,3.3139226,3467.9,3467.8,0.144]
[1719833042349,3.29314288,3467.9,3467.8,0.144]
[1719833042581,7.09472288,3467.9,3467.8,0.144]
[1719833043376,3.29314288,3467.9,3467.8,0.144]
[1719833043693,3.3139226,3467.9,3467.8,0.144]
[1719833044806,3.29314288,3467.9,3467.8,0.144]
[1719833045004,2.36472571,3467.9,3467.8,0.144]
[1719833045888,0.04332571,3467.9,3467.8,3.02767]
[1719833046107,3.02077972,3468.3,3467.8,3.02767]
[1719833046264,3.0,3468.3,3467.9,2.88357]
[1719833046461,5.489,3468.4,3467.9,2.88357]
[1719833046658,2.489,3468.4,3468.0,3.80143]
[1719833046893,2.489,3468.4,3467.8,3.02761]
[1719833047101,2.489,3468.4,3467.8,1.062]
[1719833047297,2.489,3468.4,3467.9,2.88352]
[1719833047462,0.02077972,3468.5,3468.0,2.8835]
[1719833047645,0.02077972,3468.5,3467.8,1.062]
[1719833047851,2.4024,3468.7,3468.0,0.918]
[1719833048060,7.33,3468.9,3468.2,0.918]
[1719833048261,2.4304,3469.1,3468.5,2.88307]
[1719833048479,0.02077972,3469.0,3468.5,2.88307]
[1719833049326,2.45117972,3469.1,3468.5,2.88307]
[1719833049564,2.45117972,3469.1,3468.5,2.85507]
[1719833049812,3.70609769,3469.1,3468.5,2.85507]
[1719833050029,0.04348471,3469.0,3468.5,2.85507]
[1719833050687,3.04348471,3469.0,3468.5,2.85507]
[1719833052297,3.04348471,3469.0,3468.6,2.88299]
[1719833053194,0.04348471,3469.0,3468.8,2.88283]
[1719833053595,2.39517972,3469.4,3468.8,2.88283]
[1719833053769,0.04340677,3468.9,3468.8,2.88283]
[1719833053970,3.0,3469.3,3468.8,2.88283]
[1719833054170,0.04340677,3468.9,3468.8,2.88283]
[1719833054478,2.3744,3469.4,3468.9,2.88274]
[1719833054675,2.39517972,3469.4,3468.9,2.88274]
[1719833054880,3.02649769,3469.4,3468.9,2.88274]
[1719833057617,3.02649769,3469.4,3468.8,2.88283]
[1719833058318,2.3851,3469.8,3468.9,0.918]
[1719833058526,0.02077972,3469.7,3468.9,0.918]
[1719833058836,0.02077972,3469.7,3469.1,2.88252]
[1719833059133,0.02077972,3469.7,3469.2,2.88244]
[1719833059340,0.33238797,3469.6,3469.2,2.88244]
[1719833061036,0.33238797,3469.6,3469.3,2.88242]
[1719833063625,0.02077972,3469.5,3469.2,2.88249]
[1719833063801,0.02077972,3469.5,3468.9,2.88274]
[1719833064134,1.58362677,3469.5,3468.8,2.88282]
[1719833064503,1.58362677,3469.5,3468.9,2.88273]
[1719833065029,0.06453765,3469.4,3468.9,2.88273]
[1719833066636,2.3734,3469.3,3468.7,2.8829]
[1719833066853,0.42293616,3469.2,3468.7,2.8829]
[1719833067140,0.46673788,3469.2,3468.7,2.8829]
[1719833068127,0.918,3469.1,3468.2,2.88327]
[1719833068327,0.02077972,3469.0,3468.4,2.88316]
[1719833068539,0.06453723,3469.0,3468.5,2.88308]
[1719833069308,0.06453723,3469.0,3468.3,2.88325]
[1719833069309,2.4783,3468.9,3468.3,2.88325]
[1719833069504,0.02077972,3468.8,3468.3,2.88325]
[1719833069711,0.06427636,3468.8,3468.3,2.88325]
[1719833070109,0.04349664,3468.8,3468.3,2.88325]
[1719833070307,0.04349664,3468.8,3468.4,2.88313]
[1719833070552,0.04349664,3468.8,3468.5,2.88303]
[1719833070744,0.02077972,3469.1,3468.5,2.88303]
[1719833071055,0.24501797,3469.0,3468.5,2.88303]
[1719833071222,0.04336648,3468.9,3468.5,2.88303]
[1719833073617,0.0641462,3468.9,3468.6,2.88299]
[1719833073816,0.0641462,3468.9,3468.6,2.88295]
[1719833074047,0.04336648,3468.9,3468.6,2.88295]
[1719833076421,0.04336648,3468.9,3468.8,2.88284]
[1719833076887,2.45017972,3469.2,3468.6,5.76589]
[1719833077022,0.04328587,3468.9,3468.7,2.88291]
[1719833077373,3.15356037,3469.2,3468.7,2.88291]
[1719833077853,0.04333046,3469.1,3468.7,2.88291]
[1719833078864,0.04333046,3469.1,3468.8,2.88283]
[1719833079069,0.918,3468.9,3467.9,1.1549]
[1719833079283,2.2723,3468.7,3468.3,2.88323]
[1719833079763,0.04174484,3468.6,3468.3,2.88323]
[1719833082780,0.29392904,3468.6,3467.9,2.88355]
[1719833084077,0.29392904,3468.6,3467.9,3.80155]
[1719833084266,0.29392904,3468.6,3468.0,2.88349]
[1719833084456,0.06252456,3468.6,3468.0,2.88349]
[1719833084783,0.04174484,3468.6,3468.1,0.918]
[1719833085749,0.04174484,3468.6,3468.3,2.88325]
[1719833085951,0.04174484,3468.6,3468.4,2.88316]
[1719833086144,2.49507972,3469.0,3468.4,2.88316]
[1719833086464,0.30444307,3468.9,3468.4,2.88316]
[1719833086660,0.06100172,3468.8,3468.4,2.88316]
[1719833087567,0.06100172,3468.8,3468.3,0.918]
[1719833087891,0.06100172,3468.8,3468.2,2.88328]
[1719833088051,0.06100172,3468.8,3468.3,2.88325]
[1719833088480,0.06100172,3468.8,3468.4,2.88317]
[1719833090104,0.040222,3468.8,3468.4,2.88317]
[1719833099931,0.040222,3468.8,3468.5,2.88306]
[1719833100333,0.040222,3468.8,3468.6,2.883]
[1719833101540,0.040222,3468.8,3468.7,6.68384]
[1719833101835,0.040222,3468.8,3468.7,5.76584]
[1719833102001,2.4743,3469.0,3468.8,2.88282]
[1719833102808,2.4743,3469.0,3468.9,2.88275]
[1719833103233,2.43447972,3469.3,3468.9,2.88275]
[1719833103436,0.02077972,3469.2,3468.9,2.88275]
[1719833103625,0.02077972,3469.2,3468.7,2.88292]
[1719833103821,0.02077972,3469.2,3468.8,2.88283]
[1719833104213,0.02077972,3469.2,3468.9,2.88275]
[1719833104514,3.04894797,3469.3,3469.0,2.88266]
[1719833104714,3.04894797,3469.3,3468.8,2.88277]
[1719833104955,3.04894797,3469.3,3468.7,2.88289]
[1719833105114,0.02077972,3469.2,3468.7,2.88289]
[1719833105550,0.02077972,3469.2,3468.8,2.88283]
[1719833105725,0.62775249,3469.2,3468.8,2.88283]
[1719833107250,0.62775249,3469.2,3467.9,1.1549]
[1719833107251,0.918,3469.0,3468.3,2.88319]
[1719833107454,0.02077972,3468.9,3468.5,2.88308]
[1719833108055,0.02077972,3469.0,3468.7,2.88286]
[1719833108349,2.3852,3469.1,3468.7,2.88286]
[1719833108551,2.3852,3469.1,3468.8,2.88282]
[1719833109453,2.3852,3469.1,3468.9,2.88275]
[1719833109852,4.8863456,3471.2,3468.9,2.88275]
[1719833109853,2.4106,3469.8,3468.9,0.67412638]
[1719833110042,5.4106,3469.8,3469.5,2.88221]
[1719833110245,5.4106,3469.8,3469.4,2.88233]
[1719833110246,2.4106,3469.8,3469.4,2.88233]
[1719833110755,2.4106,3469.8,3469.5,2.88224]
[1719833111456,0.02077972,3469.7,3469.5,2.88224]
[1719833111619,0.02077972,3469.7,3468.9,2.88268]
[1719833111952,2.4929,3469.6,3469.0,2.88262]
[1719833112175,0.02077972,3469.5,3469.1,2.88258]
[1719833114576,2.4929,3469.6,3468.9,0.918]
[1719833114784,2.4929,3469.6,3469.3,2.88236]
[1719833116145,2.4929,3469.6,3469.2,2.88249]
[1719833116500,2.4929,3469.6,3469.2,2.8825]
[1719833116657,3.13606797,3469.6,3469.2,2.8825]
[1719833116857,3.15684769,3469.6,3469.2,2.8825]
[1719833119648,3.15684769,3469.6,3469.1,2.88258]
[1719833120250,3.15684769,3469.6,3469.2,2.8825]
[1719833121161,0.918,3469.5,3469.0,2.88266]
[1719833121473,0.918,3469.5,3468.9,2.88274]
[1719833121474,0.02077972,3469.4,3468.9,2.88274]
[1719833122055,0.02077972,3469.4,3469.0,2.88265]
[1719833122283,0.02077972,3469.5,3468.9,2.88274]
[1719833123981,0.02077972,3469.5,3468.8,2.88283]
[1719833124193,0.61568477,3469.4,3468.8,2.88283]
[1719833124349,0.02077972,3469.3,3468.8,2.88283]
[1719833124556,2.4174,3469.2,3468.6,2.883]
[1719833124774,0.02077972,3469.1,3468.6,2.883]
[1719833125016,0.05862707,3469.1,3468.6,2.883]
[1719833125374,0.05862707,3469.1,3468.5,0.918]
[1719833126003,0.05862707,3469.1,3468.5,3.80103]
[1719833126391,0.05862707,3469.1,3468.6,2.883]
[1719833127812,0.05862707,3469.1,3468.2,2.88326]
[1719833127813,2.4099,3469.0,3468.2,2.88326]
[1719833127993,0.02077972,3468.9,3468.2,2.88326]
[1719833128322,0.05853627,3468.9,3468.3,2.88325]
[1719833130985,0.05853627,3468.9,3467.9,0.918]
[1719833130986,2.4739,3468.8,3467.9,0.918]
[1719833131218,0.02077972,3468.7,3467.9,0.918]
[1719833131390,2.4056,3468.6,3467.9,0.918]
[1719833131589,0.02077972,3468.5,3467.9,0.918]
[1719833131785,0.05803324,3468.5,3467.9,0.918]
[1719833131991,0.05803324,3468.5,3467.9,3.80158]
[1719833132213,0.05803324,3468.5,3467.9,4.470111]
[1719833134430,0.05803324,3468.5,3467.7,2.88373]
[1719833134596,0.05803324,3468.5,3467.8,2.88367]
[1719833135016,0.05803324,3468.5,3467.9,0.918]
[1719833137201,0.05803324,3468.5,3467.9,3.80157]
[1719833138441,0.05803324,3468.5,3468.0,2.88349]
[1719833141344,0.05803324,3468.5,3468.0,3.552006]
[1719833142941,0.05803324,3468.5,3467.3,5.88403]
[1719833142942,2.3936,3468.4,3467.1,1.1549]
[1719833143236,3.3867,3468.2,3467.3,0.918]
[1719833143401,6.27023,3468.0,3467.1,2.88419]
[1719833143607,2.4687,3467.8,3467.0,2.88432]
[1719833143807,0.02077972,3467.7,3467.1,2.88424]
[1719833144037,0.05754644,3467.7,3467.1,2.88424]
[1719833144234,0.03676672,3467.7,3467.2,2.88416]
[1719833146505,0.03671682,3467.6,3467.2,2.88416]
[1719833146710,2.38281272,3467.8,3467.2,2.88416]
[1719833147015,0.05632088,3467.7,3467.2,2.88416]
[1719833149749,0.05632088,3467.7,3467.1,0.918]
[1719833150152,0.05632088,3467.7,3467.1,3.80224]
[1719833150744,0.05632088,3467.7,3467.1,4.30889206]
[1719833152062,2.2838,3467.6,3466.9,3.1728]
[1719833152259,2.2838,3467.6,3467.0,2.88428]
[1719833152455,0.03566471,3467.5,3467.0,2.88428]
[1719833158164,0.03566471,3467.5,3466.9,0.28845]
[1719833158680,0.03566471,3467.5,3466.9,3.17278]
[1719833159945,2.35497972,3467.4,3466.5,2.88472]
[1719833160170,2.3342,3467.1,3466.5,2.88472]
[1719833160571,0.03535783,3467.0,3466.5,2.88472]
[1719833164556,0.03535783,3467.0,3466.6,2.88466]
[1719833170580,0.03535783,3467.0,3466.6,3.19904857]
[1719833171068,0.03535783,3467.0,3466.6,0.31438857]
[1719833171270,0.03535783,3467.0,3466.5,2.88474]
[1719833171586,0.05613755,3467.0,3466.3,3.8029]
[1719833171765,2.445,3466.9,3466.3,2.8849]
[1719833171961,0.0351849,3466.8,3466.3,2.8849]
[1719833172381,0.05596462,3466.8,3466.3,2.8849]
[1719833173267,0.05596462,3466.8,3466.1,2.88502]
[1719833173468,0.05596462,3466.8,3466.1,3.29888152]
[1719833174203,0.05596462,3466.8,3466.3,2.8849]
[1719833176585,0.05596462,3466.8,3466.4,2.88483]
[1719833177185,0.0351849,3466.8,3466.4,2.88483]
[1719833177703,0.0351849,3466.8,3466.5,2.88475]
[1719833178519,0.0351849,3466.8,3466.7,6.68716]
[1719833178821,7.33,3467.7,3466.8,2.88449]
[1719833178983,7.33,3467.7,3466.7,2.1588]
[1719833178984,2.3015,3468.3,3467.6,0.918]
[1719833179388,0.02077972,3468.2,3467.6,3.80183]
[1719833179631,2.3015,3468.3,3467.6,3.85943286]
[1719833179836,2.3015,3468.3,3467.8,2.88361]
[1719833181346,2.3015,3468.3,3467.6,2.88376]
[1719833181347,0.02077972,3468.2,3467.6,2.88376]
[1719833181851,0.93877972,3468.2,3467.4,2.88395]
[1719833182359,0.93877972,3468.2,3466.7,1.2408]
[1719833182360,0.918,3468.0,3467.1,3.80223]
[1719833182637,0.918,3468.0,3467.3,2.88403]
[1719833182638,0.02077972,3467.9,3467.3,2.88403]
[1719833183409,0.02077972,3468.0,3467.3,2.88403]
[1719833183611,2.4071,3467.9,3467.1,3.80223]
[1719833183836,0.02077972,3467.8,3467.1,3.80223]
[1719833184017,0.02077972,3467.8,3467.2,2.88415]
[1719833185025,0.02903787,3467.7,3467.2,2.88415]
[1719833188058,0.02903787,3467.7,3467.4,2.884]
[1719833188259,2.4071,3467.9,3467.6,2.88383]
[1719833188920,2.4071,3467.9,3467.7,2.88375]
[1719833189537,2.4504,3468.3,3467.8,2.88366]
[1719833189733,2.4504,3468.3,3467.9,2.88357]
[1719833190461,2.4504,3468.3,3467.9,3.80157]
[1719833191075,2.4504,3468.3,3468.0,2.88349]
[1719833193850,5.41437972,3468.7,3468.2,2.88332]
[1719833194061,2.3936,3468.7,3468.4,2.88312]
[1719833195146,2.3936,3468.7,3468.1,2.8834]
[1719833195147,2.41437972,3468.7,3468.1,2.8834]
[1719833195350,2.41437972,3468.7,3468.2,2.88333]
[1719833196146,2.3936,3468.7,3468.2,2.88333]
[1719833196353,5.3936,3468.7,3468.2,2.88333]
[1719833196989,5.3936,3468.7,3468.3,2.88325]
[1719833197162,5.41437972,3468.7,3468.3,2.88325]
[1719833197550,2.41437972,3468.7,3468.3,2.88325]
[1719833197758,2.3936,3468.7,3468.3,2.88325]
[1719833199864,0.02960604,3468.6,3468.3,2.88325]
[1719833200503,0.02960604,3468.6,3468.1,2.88342]
[1719833200504,0.05038576,3468.6,3468.1,2.88342]
[1719833200668,0.02960604,3468.6,3468.2,2.88333]
[1719833201499,0.02960604,3468.6,3468.0,2.88344]
[1719833201701,2.3249,3468.4,3468.0,2.88344]
[1719833201855,0.02077972,3468.3,3467.8,2.88363]
[1719833202054,0.05046274,3468.3,3467.8,2.88363]
[1719833202518,0.05046274,3468.3,3467.6,2.88378]
[1719833202657,0.918,3468.2,3467.6,2.88378]
[1719833202857,0.02077972,3468.1,3467.6,2.88378]
[1719833203167,0.05036301,3468.1,3467.3,2.88406]
[1719833203370,0.05036301,3468.1,3467.4,3.802]
[1719833203571,0.05036301,3468.1,3467.6,2.88378]
[1719833203955,0.02958329,3468.1,3467.6,2.88378]
[1719833204161,0.02077972,3468.3,3467.6,2.88378]
[1719833204389,0.02963316,3468.2,3467.6,2.88378]
[1719833204694,0.05041288,3468.2,3467.6,2.88378]
[1719833205511,0.02963316,3468.2,3467.8,2.88361]
[1719833205679,0.02963316,3468.2,3467.9,2.88358]
[1719833205876,2.34567972,3468.4,3467.9,2.88358]
[1719833206062,0.02955549,3468.1,3468.0,2.8835]
[1719833206266,2.3249,3468.4,3468.0,2.8835]
[1719833206765,0.02965731,3468.3,3468.1,2.88334]
[1719833210299,0.02965731,3468.3,3468.0,2.8835]
[1719833212410,0.05043703,3468.3,3467.7,2.88374]
[1719833213198,0.05043703,3468.3,3467.7,3.62329666]
[1719833213471,0.05043703,3468.3,3467.9,2.88358]
[1719833213666,0.05043703,3468.3,3467.7,3.62329666]
[1719833213865,0.05043703,3468.3,3467.7,4.54129666]
[1719833214894,0.05043703,3468.3,3467.7,3.62329666]
[1719833215701,0.05043703,3468.3,3467.8,2.88366]
[1719833216201,0.05043703,3468.3,3467.7,0.73954666]
[1719833216728,0.05043703,3468.3,3467.6,2.88377]
[1719833216887,2.4618,3468.2,3467.6,2.88377]
[1719833217201,0.02077972,3468.1,3467.6,2.88377]
[1719833217573,0.02943699,3468.0,3467.9,2.88358]
[1719833217777,0.02077972,3468.5,3467.9,2.88358]
[1719833217984,0.02963647,3468.4,3467.9,2.88358]
[1719833219525,0.02963647,3468.4,3468.0,2.8835]
[1719833219883,2.36767972,3468.6,3468.0,2.8835]
[1719833220091,0.02958591,3468.3,3468.0,2.8835]
[1719833220386,2.36767972,3468.6,3468.0,3.552016]
[1719833220590,0.05046536,3468.5,3468.0,2.8835]
[1719833221346,0.02968564,3468.5,3468.1,2.88342]
[1719833221497,0.02968564,3468.5,3468.3,2.88325]
[1719833221994,0.0294484,3468.4,3468.3,2.88325]
[1719833222228,2.3402,3468.7,3468.3,2.88325]
[1719833222405,0.02954813,3468.6,3468.3,2.88325]
[1719833223790,0.05032785,3468.6,3467.9,2.88356]
[1719833224046,0.05032785,3468.6,3468.0,2.88349]
[1719833224523,0.05032785,3468.6,3467.8,3.8016]
[1719833224689,2.3351,3468.5,3467.9,2.88358]
[1719833224912,0.02077972,3468.4,3467.9,2.88358]
[1719833225115,0.02942083,3468.4,3467.9,2.88358]
[1719833226217,0.02077972,3468.3,3467.5,2.88385]
[1719833226443,0.02077972,3468.3,3467.6,2.88383]
[1719833226444,2.46605891,3468.2,3467.6,2.88383]
[1719833226957,0.02077972,3468.1,3467.5,3.2135436]
[1719833227316,0.02935916,3468.0,3467.5,3.2135436]
[1719833228354,0.02935916,3468.0,3467.6,2.88383]
[1719833229058,0.02935916,3468.0,3467.5,1.2476336]
[1719833229744,0.02935916,3468.0,3467.5,0.3296336]
[1719833230967,0.02935916,3468.0,3467.5,3.2135336]
[1719833231535,0.02935916,3468.0,3467.5,0.3296336]
[1719833231855,0.02935916,3468.0,3467.4,2.88399]
[1719833235138,0.02935916,3468.0,3467.3,4.214566]
[1719833235139,0.02935916,3468.0,3467.5,2.88386]
[1719833235458,0.02935916,3468.0,3467.6,2.88383]
[1719833237428,0.02935916,3468.0,3467.9,2.88358]
[1719833237629,2.4366,3468.2,3467.9,2.88358]
[1719833237929,0.02949065,3468.1,3467.9,2.88358]
[1719833240425,0.02949065,3468.1,3468.0,2.8835]
[1719833241535,0.02949065,3468.1,3467.9,0.668525]
[1719833241743,0.05027037,3468.1,3467.8,2.88361]
[1719833242130,0.02949065,3468.1,3467.8,2.88361]
[1719833243282,0.02949065,3468.1,3467.9,2.88357]
[1719833247874,0.02949065,3468.1,3468.0,2.8835]
[1719833249588,0.02949065,3468.1,3467.8,2.88367]
[1719833249772,0.02949065,3468.1,3467.9,2.88353]
[1719833254711,0.05027037,3468.1,3467.6,2.88382]
[1719833262308,0.05027037,3468.1,3467.7,2.88373]
[1719833263021,0.05027037,3468.1,3467.6,2.88382]
[1719833263337,0.05027037,3468.1,3467.4,5.76791]
[1719833263534,0.05027037,3468.1,3467.5,2.88391]
[1719833263908,0.05027037,3468.1,3467.6,2.88383]
[1719833264120,0.05027037,3468.1,3467.4,3.676601]
[1719833265235,0.05027037,3468.1,3467.4,3.676601]
[1719833265805,2.3028,3468.0,3467.4,3.676601]
[1719833266017,0.04920726,3467.9,3467.4,3.676601]
[1719833266221,2.2693,3467.7,3466.9,2.88437]
[1719833266426,0.02077972,3467.6,3466.9,2.88437]
[1719833266626,0.04905761,3467.6,3466.9,2.88437]
[1719833267400,0.04905761,3467.6,3467.0,2.88432]
[1719833268340,0.04905761,3467.6,3466.9,0.918]
[1719833268503,0.04905761,3467.6,3466.8,2.88444]
[1719833268707,0.04905761,3467.6,3466.8,4.5702956]
[1719833269104,0.04905761,3467.6,3466.5,1.909566]
[1719833269105,2.4061,3467.5,3466.5,3.553476]
[1719833269449,2.3872,3467.3,3466.5,3.80271]
[1719833269632,0.04885596,3467.2,3466.5,3.80271]
[1719833269960,0.96685596,3467.2,3466.4,2.88482]
[1719833270122,0.04885596,3467.2,3466.5,2.88474]
[1719833270324,0.04885596,3467.2,3466.4,0.918]
[1719833270325,0.04885596,3467.2,3466.4,2.88483]
[1719833270522,0.04885596,3467.2,3466.4,4.503883]
[1719833270701,0.04885596,3467.2,3466.5,2.88475]
[1719833274049,2.3495,3467.1,3466.4,1.619053]
[1719833274248,0.04892085,3467.0,3466.3,2.8849]
[1719833274409,2.3495,3466.9,3466.3,2.8849]
[1719833274614,0.02801371,3466.8,3466.3,2.8849]
[1719833275716,0.04879343,3466.8,3466.3,2.8849]
[1719833281569,0.04879343,3466.8,3466.1,2.88507]
[1719833281882,2.4012,3466.7,3465.9,2.88522]
[1719833282036,0.04847171,3466.6,3465.9,3.80322]
[1719833282229,0.04847171,3466.6,3465.9,4.472081]
[1719833282531,0.04847171,3466.6,3466.0,2.88516]
[1719833282875,0.04847171,3466.6,3466.1,2.88506]
[1719833283170,0.04847171,3466.6,3466.0,2.88516]
[1719833283356,0.04847171,3466.6,3466.1,2.88508]
[1719833283734,2.3956,3466.5,3466.1,2.88508]
[1719833284131,0.02759215,3466.4,3466.1,2.88508]
[1719833285061,0.02759215,3466.4,3466.2,2.88498]
[1719833285263,2.3956,3466.5,3466.2,3.6206721]
[1719833286455,0.02759215,3466.4,3466.2,3.6206721]
[1719833287569,0.04837187,3466.4,3466.0,2.88516]
[1719833289789,0.04837187,3466.4,3465.8,2.88531]
[1719833290078,0.04837187,3466.4,3465.9,2.88523]
[1719833290650,2.468,3466.3,3465.8,2.88531]
[1719833290852,0.04818575,3466.2,3465.8,2.88531]
[1719833291845,0.04818575,3466.2,3464.9,3.0]
[1719833291846,2.3498,3466.1,3465.4,2.88561]
[1719833292054,0.04822408,3466.0,3465.5,2.88557]
[1719833293775,0.04822408,3466.0,3465.8,0.918]
[1719833293776,0.02744436,3466.0,3465.8,0.918]
[1719833293978,0.02744436,3466.0,3465.9,2.88525]
[1719833294197,0.02077972,3466.3,3465.9,2.88525]
[1719833294549,0.02757542,3466.2,3465.9,2.88525]
[1719833294746,0.02757542,3466.2,3466.0,2.88516]
[1719833294996,2.3008,3466.9,3466.2,2.88497]
[1719833295172,2.3008,3466.9,3466.2,3.80297]
[1719833295173,1.28593769,3466.8,3466.2,3.80297]
[1719833295484,0.02077972,3466.7,3466.2,2.88497]
[1719833295682,2.352,3466.6,3466.2,2.88497]
[1719833295861,0.02077972,3466.5,3466.2,2.88497]
[1719833296600,2.37277972,3466.6,3466.2,2.88497]
[1719833296812,2.352,3466.6,3466.2,2.88497]
[1719833297494,2.352,3466.6,3466.4,2.88476]
[1719833302191,2.3707,3466.8,3466.5,2.88475]
[1719833302492,0.04836867,3466.7,3466.5,0.668775]
[1719833302693,0.02077972,3466.7,3466.3,3.80292]
[1719833302888,0.02077972,3466.7,3466.4,2.88483]
[1719833303064,0.02737353,3466.6,3466.4,2.88483]
[1719833306268,2.2583,3466.5,3465.7,1.2408]
[1719833306469,2.2583,3466.5,3466.3,2.88486]
[1719833306790,0.02727368,3466.4,3466.3,2.88486]
[1719833307162,0.02077972,3466.6,3466.3,2.88486]
[1719833307356,0.02727368,3466.4,3466.3,6.438573]
[1719833307595,2.2583,3468.3,3466.9,2.88442]
[1719833307796,2.88309,3468.5,3467.3,3.80203]
[1719833308094,2.88309,3468.5,3467.3,2.88403]
[1719833308095,2.2583,3468.0,3467.3,2.88403]
[1719833308460,0.918,3467.9,3467.3,2.88403]
[1719833308667,2.27907972,3467.8,3467.3,2.88403]
[1719833308863,0.02077972,3467.7,3467.3,2.88403]
[1719833310290,0.918,3467.5,3466.3,0.668793]
[1719833310511,0.02077972,3467.4,3466.6,0.918]
[1719833310717,2.3218,3467.3,3466.8,2.8845]
[1719833310903,0.02077972,3467.2,3466.8,2.8845]
[1719833311281,0.02077972,3467.2,3466.6,2.8846]
[1719833313487,0.02077972,3467.2,3466.7,2.88458]
[1719833313815,0.02077972,3467.2,3466.9,2.88435]
[1719833314017,0.02077972,3467.2,3466.7,2.88458]
[1719833314220,2.3218,3467.3,3466.8,1.298258]
[1719833314432,2.3218,3467.3,3466.8,0.918]
[1719833314716,2.3218,3467.3,3467.0,2.88425]
[1719833315737,2.3218,3467.3,3466.8,5.76891]
[1719833315914,0.02077972,3467.2,3466.9,2.88441]
[1719833317636,0.93877972,3467.2,3466.4,2.88475]
[1719833317839,1.17303769,3467.2,3466.3,0.918]
[1719833318135,1.17303769,3467.2,3466.6,2.88466]
[1719833318342,0.25503769,3467.2,3466.6,2.88466]
[1719833319918,0.02791289,3467.1,3466.6,2.88466]
[1719833322545,0.02791289,3467.1,3466.5,0.918]
[1719833322546,2.2975,3467.0,3466.1,2.88505]
[1719833322753,0.02077972,3466.9,3466.4,2.88483]
[1719833322970,0.04839273,3466.9,3466.4,2.88483]
[1719833323909,0.04839273,3466.9,3466.4,3.80283]
[1719833326127,0.02761301,3466.9,3466.4,3.80283]
[1719833326863,0.02761301,3466.9,3466.5,2.88474]
[1719833327327,0.02761301,3466.9,3466.5,2.83474]
[1719833327667,0.04839273,3466.9,3466.5,2.83474]
[1719833328622,0.04839273,3466.9,3466.6,2.88462]
[1719833328827,0.02761301,3466.9,3466.7,2.88457]
[1719833331034,0.02761301,3466.9,3466.6,0.918]
[1719833331369,0.04839273,3466.9,3466.5,2.88475]
[1719833331663,0.04839273,3466.9,3466.6,2.88465]
[1719833333058,0.04839273,3466.9,3466.5,2.88474]
[1719833333966,2.4122,3466.8,3466.2,2.885]
[1719833334266,0.02077972,3466.7,3466.2,2.885]
[1719833334582,2.4122,3466.6,3466.0,2.88516]
[1719833334731,0.02077972,3466.5,3466.1,2.88508]
[1719833334932,0.0318461,3466.4,3466.1,2.88508]
[1719833338169,0.0318461,3466.4,3466.2,3.80299]
[1719833338367,2.4122,3466.6,3466.3,2.88492]
[1719833339003,2.4122,3466.6,3466.2,0.918]
[1719833339392,2.4122,3466.6,3466.2,3.80298]
[1719833340300,2.2898,3466.9,3466.4,0.918]
[1719833340461,2.2898,3466.9,3466.6,3.80266]
[1719833340992,7.33,3467.1,3466.8,3.80243]
[1719833341195,2.2554,3467.3,3466.9,2.88442]
[1719833342195,2.2554,3467.3,3467.1,2.88424]
[1719833342396,2.2554,3467.3,3467.0,0.918]
[1719833342569,2.2554,3467.3,3466.9,2.88442]
[1719833343189,2.2554,3467.3,3466.8,0.918]
[1719833343610,2.2554,3467.3,3466.6,2.88467]
[1719833343611,2.78301797,3467.3,3466.6,2.88467]
[1719833343806,0.02077972,3467.2,3466.6,2.88467]
[1719833346377,0.02077972,3467.2,3466.4,2.88477]
[1719833346599,0.02077972,3467.2,3466.5,2.88474]
[1719833346885,0.58956049,3467.2,3466.5,2.88474]
[1719833348112,0.58956049,3467.2,3466.5,5.76948]
[1719833348316,0.02077972,3467.2,3466.5,5.76948]
[1719833348478,0.02077972,3467.2,3466.5,2.88474]
[1719833349201,2.4834,3467.1,3466.3,2.88489]
[1719833349405,0.02077972,3467.0,3466.4,2.88483]
[1719833350836,0.02077972,3467.0,3466.5,2.88473]
[1719833353239,0.02077972,3467.0,3466.3,2.8849]
[1719833353400,2.4207,3466.9,3466.3,2.8849]
[1719833354215,0.49959946,3466.8,3466.3,2.8849]
[1719833354443,0.49959946,3466.7,3466.3,2.8849]
[1719833354605,0.49959946,3466.8,3466.3,2.8849]
[1719833355264,2.4207,3466.9,3466.1,2.88505]
[1719833355466,0.49959792,3466.7,3466.3,2.88488]
[1719833355771,2.4207,3466.9,3466.3,2.88488]
[1719833355772,0.49959792,3466.6,3466.3,2.88488]
[1719833355969,0.49959792,3466.8,3466.3,2.88488]
[1719833356171,0.49959792,3466.8,3466.5,2.88475]
[1719833356969,0.49959792,3466.8,3465.8,3.4458]
[1719833357186,0.49959792,3466.8,3465.6,0.33542904]
[1719833357187,0.49959792,3466.8,3466.3,1.2408]
[1719833357468,2.4127,3467.2,3466.7,2.88458]
[1719833357772,0.49954019,3467.1,3466.7,2.88458]
[1719833357932,0.49954019,3467.0,3466.7,2.88458]